fUSD/lending_fUSD_20240520
["ID","MTS","AMOUNT","RATE_DAILY","PERIOD"]
[327560010,1716229841513,-1338.34818995,0.00023629,2]
[327560011,1716229841522,-1338.34818995,0.00023631,2]
[327560012,1716229841532,-150.0,0.00023642,2]
[327560013,1716229841542,-150.0,0.00023661,2]
[327560014,1716229841551,-150.0,0.00023672,2]
[327560015,1716229841561,-155.26226863,0.00023693,2]
[327560016,1716229841716,-500.0,0.00023698,2]
[327560017,1716229841726,-900.0,0.00023698,2]
[327560018,1716229841736,-600.0,0.00023698,2]
[327560019,1716229841745,-150.0,0.00023706,2]
[327560020,1716229841755,-150.0,0.00023711,2]
[327560021,1716229841765,-191.57366652,0.00023723,2]
[327560022,1716229841774,-170.18130382,0.00023747,2]
[327560023,1716229841785,-1338.34818995,0.00023777,2]
[327560024,1716229841794,-157.052019,0.00023798,4]
[327560025,1716229841804,-1000.0,0.000238,4]
[327560026,1716229841813,-413.4673435,0.000238,2]
[327560027,1716229841822,-1500.0,0.000238,2]
[327560028,1716229841832,-167.0,0.00023809,2]
[327560029,1716229841841,-413.4673435,0.00023821,2]
[327560030,1716229841852,-10000.0,0.00023849,2]
[327560031,1716229841862,-684.54451607,0.00023851,2]
[327560032,1716229841872,-8230.30187163,0.0002386,2]
[327560033,1716229841882,-321.50938792,0.00023888,2]
[327560034,1716229841892,-150.0,0.00023889,2]
[327560035,1716229841902,-1000.0,0.000239,2]
[327560036,1716229841911,-150.0,0.0002392,2]
[327560037,1716229841920,-150.0,0.00023932,2]
[327560038,1716229841930,-271.06,0.00023935,2]
[327560039,1716229841939,-1500.0,0.00023938,2]
[327560040,1716229841948,-413.4673435,0.00023945,2]
[327560041,1716229841958,-1338.34818995,0.00023948,2]
[327560042,1716229841968,-150.0,0.0002395,2]
[327560043,1716229841978,-150.0,0.00023967,2]
[327560044,1716229841987,-254.03831927,0.00023971,2]
[327560045,1716229841998,-150.0,0.00023987,2]
[327560046,1716229842007,-830.94633425,0.00024,2]
[327560047,1716229842016,-1000.0,0.00024,4]
[327560048,1716229842026,-1000.0,0.00024,4]
[327560049,1716229842036,-1001.77213746,0.00024,4]
[327560050,1716229842045,-1000.77339041,0.00024,2]
[327560051,1716229842055,-2000.0,0.00024,2]
[327560052,1716229842064,-23083.56,0.00024,15]
[327560053,1716229842073,-500.0,0.00024,2]
[327560054,1716229842084,-500.0,0.00024,2]
[327560055,1716229842092,-500.0,0.00024,2]
[327560056,1716229842102,-500.0,0.00024,2]
[327560057,1716229842112,-500.0,0.00024,2]
[327560058,1716229842121,-500.0,0.00024,2]
[327560059,1716229842131,-500.0,0.00024,2]
[327560060,1716229842140,-500.0,0.00024,2]
[327560061,1716229842149,-500.0,0.00024,2]
[327560062,1716229842159,-500.0,0.00024,2]
[327560063,1716229842168,-500.0,0.00024,2]
[327560064,1716229842177,-500.0,0.00024,2]
[327560065,1716229842187,-500.0,0.00024,2]
[327560066,1716229842196,-500.0,0.00024,2]
[327560067,1716229842205,-500.0,0.00024,2]
[327560068,1716229842215,-500.0,0.00024,2]
[327560069,1716229842224,-500.0,0.00024,2]
[327560070,1716229842233,-500.0,0.00024,2]
[327560071,1716229842242,-353.06,0.00024,2]
[327560072,1716229842251,-500.0,0.00024,2]
[327560073,1716229842261,-500.0,0.00024,2]
[327560074,1716229842271,-500.0,0.00024,2]
[327560075,1716229842281,-500.0,0.00024,2]
[327560076,1716229842291,-500.0,0.00024,2]
[327560077,1716229842300,-500.0,0.00024,2]
[327560078,1716229842310,-500.0,0.00024,2]
[327560079,1716229842319,-500.0,0.00024,2]
[327560080,1716229842329,-500.0,0.00024,2]
[327560081,1716229842338,-500.0,0.00024,2]
[327560082,1716229842347,-500.0,0.00024,2]
[327560083,1716229842357,-500.0,0.00024,2]
[327560084,1716229842366,-500.0,0.00024,2]
[327560085,1716229842376,-500.0,0.00024,2]
[327560086,1716229842385,-500.0,0.00024,2]
[327560087,1716229842396,-500.0,0.00024,2]
[327560088,1716229842405,-500.0,0.00024,2]
[327560089,1716229842416,-500.0,0.00024,2]
[327560090,1716229842426,-500.0,0.00024,2]
[327560091,1716229842435,-500.0,0.00024,2]
[327560092,1716229842444,-500.0,0.00024,2]
[327560093,1716229842454,-500.0,0.00024,2]
[327560094,1716229842464,-500.0,0.00024,2]
[327560095,1716229842474,-500.0,0.00024,2]
[327560096,1716229842484,-500.0,0.00024,2]
[327560097,1716229842493,-500.0,0.00024,2]
[327560098,1716229842504,-627.43,0.00024,2]
[327560099,1716229842513,-500.0,0.00024,2]
[327560100,1716229842523,-500.0,0.00024,2]
[327560101,1716229842534,-500.0,0.00024,2]
[327560102,1716229842543,-500.0,0.00024,2]
[327560103,1716229842554,-511.57,0.00024,2]
[327560104,1716229842564,-500.0,0.00024,2]
[327560105,1716229842574,-500.0,0.00024,2]
[327560106,1716229842588,-500.0,0.00024,2]
[327560107,1716229842597,-510.88,0.00024,2]
[327560108,1716229842607,-150.0,0.00024,4]
[327560109,1716229842616,-150.0,0.00024009,2]
[327560110,1716229842627,-169.1813528,0.00024014,2]
[327560111,1716229842636,-151.18543486,0.00024016,2]
[327560112,1716229842645,-153.30748745,0.00024031,2]
[327560113,1716229842655,-1500.0,0.00024042,2]
[327560114,1716229842665,-150.0,0.00024071,2]
[327560115,1716229842675,-1500.0,0.00024072,2]
[327560116,1716229842685,-151.18543486,0.00024078,2]
[327560117,1716229842700,-413.4673435,0.00024078,2]
[327560118,1716229842720,-413.4673435,0.00024084,2]
[327560119,1716229842737,-150.0,0.00024091,2]
[327560120,1716229842756,-150.0,0.00024093,2]
[327560121,1716229842777,-150.0,0.000241,2]
[327560122,1716229842795,-1500.0,0.000241,2]
[327560123,1716229842813,-150.0,0.00024102,2]
[327560124,1716229842828,-1500.0,0.00024111,2]
[327560125,1716229842844,-150.0,0.0002412,2]
[327560126,1716229842861,-608.30433365,0.00024131,2]
[327560127,1716229842882,-150.0,0.00024136,2]
[327560128,1716229842896,-1500.0,0.00024136,2]
[327560129,1716229842911,-150.0,0.00024142,2]
[327560130,1716229842927,-150.0,0.00024146,2]
[327560131,1716229842944,-1500.0,0.00024151,2]
[327560132,1716229842958,-151.29039193,0.00024159,2]
[327560133,1716229842972,-150.0,0.00024162,2]
[327560134,1716229842987,-1500.0,0.00024162,2]
[327560135,1716229843002,-300.0,0.00024176,2]
[327560136,1716229843023,-172.96240639,0.00024177,2]
[327560137,1716229843038,-300.0,0.00024183,2]
[327560138,1716229843054,-150.0,0.00024186,2]
[327560139,1716229843069,-300.82172281,0.00024192,2]
[327560140,1716229843086,-157.052019,0.00024198,4]
[327560141,1716229843102,-1500.0,0.000242,2]
[327560142,1716229843118,-300.82172281,0.00024202,2]
[327560143,1716229843133,-1500.0,0.00024209,2]
[327560144,1716229843148,-151.29039193,0.00024215,2]
[327560145,1716229843163,-150.0,0.00024222,2]
[327560146,1716229843179,-1500.0,0.00024232,2]
[327560147,1716229843195,-900.0,0.00024246,2]
[327560148,1716229843209,-1097.58765486,0.00024256,2]
[327560149,1716229843224,-1051.50942337,0.00024256,2]
[327560150,1716229843239,-1500.0,0.00024257,2]
[327560151,1716229843254,-150.0,0.00024258,2]
[327560152,1716229843269,-150.0,0.00024264,2]
[327560153,1716229843284,-150.0,0.00024269,2]
[327560154,1716229843299,-155.99121968,0.00024274,2]
[327560155,1716229843314,-150.0,0.00024283,2]
[327560156,1716229843330,-420.73,0.00024284,2]
[327560157,1716229843345,-420.73,0.00024284,2]
[327560158,1716229843360,-420.73,0.00024284,2]
[327560159,1716229843374,-419.03,0.00024284,2]
[327560160,1716229843388,-351.8,0.00024284,2]
[327560161,1716229843403,-524.02,0.00024284,2]
[327560163,1716229843418,-524.02,0.00024284,2]
[327560165,1716229843432,-524.02,0.00024284,2]
[327560166,1716229843447,-351.8,0.00024284,2]
[327560167,1716229843462,-351.8,0.00024284,2]
[327560168,1716229843477,-503.17,0.00024284,2]
[327560169,1716229843492,-150.0,0.00024291,2]
[327560170,1716229843506,-242620.45984679,0.000243,2]
[327560179,1716229844234,-150.0,0.00022319,2]
[327560180,1716229844245,-150.0,0.00022437,2]
[327560181,1716229844485,-150.0,0.00022586,2]
[327560182,1716229844522,-50.35141074,0.00023015,2]
[327560183,1716229844535,-99.64858926,0.00023015,2]
[327560184,1716229844545,-150.0,0.00023051,2]
[327560185,1716229844554,-150.0,0.0002379,2]
[327560186,1716229844564,-150.0,0.00023962,2]
[327560187,1716229844575,-150.0,0.0002401,2]
[327560188,1716229844589,-17.5923295,0.00024185,2]
[327560191,1716229845100,-150.0,0.00021576,2]
[327560192,1716229845110,-150.0,0.00022368,2]
[327560193,1716229845121,-150.0,0.00022386,2]
[327560194,1716229845131,-150.0,0.00022547,2]
[327560195,1716229845140,-150.0,0.00023128,2]
[327560196,1716229845150,-150.0,0.00023133,2]
[327560197,1716229845160,-150.0,0.00023145,2]
[327560198,1716229845170,-150.0,0.00023199,2]
[327560199,1716229845179,-150.0,0.00023582,2]
[327560200,1716229845190,-150.0,0.00023775,2]
[327560201,1716229845199,-150.0,0.00023789,2]
[327560202,1716229845209,-150.0,0.00024082,2]
[327560203,1716229845218,-132.4076705,0.00024185,2]
[327560204,1716229845227,-4916.8923295,0.000243,2]
[327560205,1716229845240,-592.52035811,0.000243,2]
[327560206,1716229845618,-150.0,0.00021729,2]
[327560207,1716229845629,-150.0,0.00022207,2]
[327560208,1716229845638,-150.0,0.00022785,2]
[327560209,1716229845647,-150.0,0.00023352,2]
[327560210,1716229845657,-150.0,0.00023477,2]
[327560211,1716229845670,-150.0,0.00024046,2]
[327560212,1716229845680,-2458.4852898,0.000243,2]
[327560213,1716229845691,-824.57259135,0.000243,8]
[327560214,1716229845703,-814.54165487,0.000243,8]
[327560219,1716229847851,-526.14583841,0.00017259,2]
[327560220,1716229847861,-5184.68610729,0.0002,2]
[327560221,1716229847871,-1570.86639182,0.00022793,2]
[327560222,1716229847880,-52469.93744591,0.000243,8]
[327560223,1716229847892,-555.88861113,0.000243,8]
[327560224,1716229847904,-3442.59938941,0.000243,8]
[327560225,1716229847915,-2453.25122604,0.000243,8]
[327560226,1716229847927,-28774.66455965,0.000243,8]
[327560227,1716229847939,-647.8,0.000243,8]
[327560355,1716231034284,-273.606105,0.000118,2]
[327560364,1716231034357,-2187.68500859,0.000118,2]
[327560365,1716231034366,-211.43454253,0.000118,2]
[327560366,1716231034375,-883.0724361,0.00012398,2]
[327560367,1716231034385,-157.06289429,0.00012398,2]
[327560368,1716231034394,-150.0,0.00012399,2]
[327560370,1716231034404,-9436.14475134,0.000124,2]
[327560371,1716231034413,-460.31,0.00012675,2]
[327560372,1716231034423,-150.02,0.0001277,2]
[327560373,1716231034432,-150.02,0.00012903,2]
[327560374,1716231034442,-457.74988423,0.00013,2]
[327560375,1716231034452,-150.02,0.00013036,2]
[327560376,1716231034463,-150.02,0.00013169,2]
[327560377,1716231034475,-150.02,0.00013302,2]
[327560378,1716231034484,-150.02,0.00013435,2]
[327560379,1716231034494,-210.0,0.00013639,2]
[327560380,1716231034503,-500.0,0.00013699,2]
[327560381,1716231034513,-150.0,0.00013945,2]
[327560382,1716231034522,-222.56,0.00013973,2]
[327560383,1716231034532,-170.4,0.00013976,2]
[327560384,1716231034543,-8169.0,0.00015,2]
[327560385,1716231034552,-618.8768531,0.00015,2]
[327560386,1716231034563,-8757.83209946,0.00015,2]
[327560387,1716231034576,-58243.21933951,0.00015,2]
[327560388,1716231034585,-219.05,0.00015443,2]
[327560389,1716231034595,-1138.53,0.00016659,2]
[327560390,1716231034604,-9153.75661789,0.00016673,2]
[327560391,1716231034977,-1093.4165081,0.00016673,2]
[327560392,1716231034988,-13652.82687401,0.00016673,2]
[327560393,1716231034998,-499.99,0.00016838,2]
[327560394,1716231035008,-6603.2633,0.00016838,2]
[327560395,1716231035018,-1500.0,0.00017311,2]
[327560396,1716231035028,-250.0,0.00017359,2]
[327560397,1716231035038,-250.0,0.00017361,2]
[327560398,1716231035050,-2751.0,0.00017401,2]
[327560399,1716231035061,-1000.0,0.00017401,2]
[327560400,1716231035070,-1198.03,0.00017441,2]
[327560401,1716231035080,-200.0,0.0001747,2]
[327560402,1716231035090,-1000.0,0.00017487,2]
[327560403,1716231035099,-219.05,0.00017707,2]
[327560404,1716231035109,-158.43327398,0.00018,2]
[327560405,1716231035118,-300.0,0.00018122,2]
[327560406,1716231035128,-1000.0,0.00018207,2]
[327560407,1716231035137,-166.03775106,0.00018558,2]
[327560408,1716231035146,-1071.1,0.00018584,2]
[327560409,1716231035155,-1071.1,0.00018589,2]
[327560410,1716231035165,-1071.1,0.00018594,2]
[327560411,1716231035174,-1071.1,0.00018599,2]
[327560412,1716231035184,-1071.1,0.00018603,2]
[327560413,1716231035193,-1071.1,0.00018608,2]
[327560414,1716231035203,-1071.1,0.00018613,2]
[327560415,1716231035212,-1071.1,0.00018618,2]
[327560416,1716231035221,-1071.1,0.00018623,2]
[327560417,1716231035231,-1071.1,0.00018628,2]
[327560418,1716231035241,-1071.1,0.00018633,2]
[327560419,1716231035251,-1071.1,0.00018638,2]
[327560420,1716231035262,-1071.1,0.00018643,2]
[327560421,1716231035271,-1071.1,0.00018648,2]
[327560422,1716231035281,-1071.1,0.00018653,2]
[327560423,1716231035290,-1071.1,0.00018657,2]
[327560424,1716231035301,-1071.1,0.00018662,2]
[327560425,1716231035319,-1071.1,0.00018667,2]
[327560426,1716231035328,-1071.1,0.00018672,2]
[327560427,1716231035338,-1071.1,0.00018677,2]
[327560428,1716231035348,-500.0,0.00018812,2]
[327560429,1716231035357,-1138.53,0.00019399,2]
[327560430,1716231035367,-1400.0,0.00019437,2]
[327560431,1716231035375,-545.64,0.00019437,2]
[327560432,1716231035385,-300.0,0.00019492,2]
[327560433,1716231035395,-472.25625666,0.000195,2]
[327560434,1716231035405,-19615.65373925,0.000196,2]
[327560435,1716231035415,-1000.0,0.00019673,2]
[327560436,1716231035424,-2500.0,0.000197,2]
[327560437,1716231035435,-104480.6028,0.000198,2]
[327560438,1716231035445,-164.41248888,0.00019871,2]
[327560439,1716231035455,-321.50938792,0.00019871,2]
[327560440,1716231035465,-1073.22459624,0.00019899,5]
[327560441,1716231035475,-316769.37981331,0.000199,3]
[327560442,1716231035489,-3198.61193151,0.000199,3]
[327560443,1716231035501,-1376.26136,0.000199,3]
[327560444,1716231035513,-866.7628267,0.000199,3]
[327560457,1716231038338,-810.16228092,0.00018548,2]
[327560458,1716231038351,-22023.78901908,0.00018548,2]
[327560459,1716231038361,-108186.2733459,0.000199,3]
[327560460,1716231040378,-373.27506,0.000199,3]
[327560462,1716231040390,-417.0130129,0.000199,3]
[327560463,1716231040402,-749.3406994,0.000199,3]
[327560464,1716231040414,-14583.73721679,0.000199,3]
[327560465,1716231040423,-219.05,0.00019971,2]
[327560466,1716231040433,-257.65395905,0.00019998,2]
[327560467,1716231040443,-162.53422443,0.00019998,2]
[327560468,1716231040453,-155.08356513,0.00019998,2]
[327560469,1716231040463,-10969.10661379,0.00019998,2]
[327560470,1716231040472,-488.66319788,0.00019998,2]
[327560471,1716231040482,-450.86896563,0.00019998,2]
[327560472,1716231040502,-5272.17642688,0.00019998,2]
[327560473,1716231040514,-831.29264671,0.00019998,2]
[327560554,1716231046045,-492.04358545,0.00019998,2]
[327560555,1716231046057,-155.23592519,0.00019998,2]
[327560556,1716231046068,-862.07894367,0.0002,2]
[327560557,1716231046079,-546.89106013,0.0002,2]
[327560558,1716231046088,-6238.00785367,0.0002,2]
[327560559,1716231046098,-1773.05966905,0.0002,2]
[327560560,1716231046108,-627.77142105,0.0002,2]
[327560561,1716231046117,-155.0,0.0002,2]
[327560562,1716231046127,-1262.82225324,0.0002,2]
[327560563,1716231046136,-155.0,0.0002,2]
[327560564,1716231046145,-24.23168855,0.0002,2]
[327560565,1716231046158,-2133.27619333,0.0002,2]
[327560566,1716231046170,-687.12,0.0002,2]
[327560567,1716231046181,-2340.05822541,0.0002,2]
[327560568,1716231046190,-222.56,0.00020447,2]
[327560569,1716231046199,-150.0,0.000205,2]
[327560570,1716231046208,-717.73732659,0.00021,2]
[327560571,1716231046217,-1750.0,0.00021,2]
[327560572,1716231046227,-1750.0,0.00021,2]
[327560573,1716231046235,-150.0,0.00021,2]
[327560574,1716231046244,-155.0,0.00021001,2]
[327560575,1716231046253,-892.23212663,0.00021034,2]
[327560576,1716231046262,-344.70578906,0.0002105,2]
[327560577,1716231046272,-344.70578906,0.00021065,2]
[327560578,1716231046281,-158.84348737,0.00021078,2]
[327560579,1716231046290,-155.16654335,0.00021114,2]
[327560580,1716231046299,-151.70197259,0.00021116,2]
[327560581,1716231046308,-169.18135281,0.00021131,2]
[327560582,1716231046318,-151.70197259,0.0002114,2]
[327560583,1716231046328,-167.0,0.00021144,2]
[327560584,1716231046338,-153.18821613,0.00021211,2]
[327560585,1716231046347,-892.23212663,0.00021282,2]
[327560586,1716231046356,-344.70578906,0.00021391,2]
[327560587,1716231046366,-153.87433227,0.00021423,2]
[327560588,1716231046376,-150.0,0.000215,3]
[327560589,1716231046387,-155.0,0.00021598,2]
[327560590,1716231046397,-155.16654335,0.00021602,2]
[327560591,1716231046406,-153.93988001,0.00021721,2]
[327560592,1716231046415,-344.70578906,0.00021792,2]
[327560593,1716231046425,-153.93988001,0.00021799,2]
[327560594,1716231046434,-167.0,0.00021842,2]
[327560595,1716231046443,-166.66666668,0.00021856,2]
[327560596,1716231046453,-1000.0,0.00021859,2]
[327560597,1716231046462,-153.87433227,0.0002186,2]
[327560598,1716231046472,-153.18821613,0.00021866,2]
[327560599,1716231046482,-153.87433227,0.00021891,2]
[327560600,1716231046491,-153.87433227,0.00021898,2]
[327560602,1716231046501,-12993.28073755,0.000219,2]
[327560603,1716231046510,-503.0,0.000219,2]
[327560604,1716231046520,-892.23212663,0.00021908,2]
[327560605,1716231046529,-823.75,0.00021918,2]
[327560606,1716231046538,-891.21,0.00021918,2]
[327560607,1716231046547,-2000.0,0.00021918,2]
[327560608,1716231046556,-163.86,0.00021918,2]
[327560609,1716231046567,-159.00349331,0.00021943,2]
[327560610,1716231046578,-344.70578906,0.00021984,2]
[327560611,1716231046587,-5522.30417117,0.00022,2]
[327560612,1716231046597,-787.28734739,0.00022,2]
[327560613,1716231046607,-150.0,0.00022,3]
[327560614,1716231046616,-344.70578906,0.0002203,2]
[327560615,1716231046626,-155.16654335,0.00022034,2]
[327560616,1716231046635,-166.03775106,0.00022035,2]
[327560617,1716231046645,-344.70578906,0.00022038,2]
[327560618,1716231046655,-155.16654335,0.00022099,2]
[327560619,1716231046664,-344.70578906,0.000221,2]
[327560620,1716231046673,-166.66666668,0.00022131,2]
[327560621,1716231046683,-1138.53,0.00022139,2]
[327560622,1716231046692,-219.05,0.00022235,2]
[327560623,1716231046702,-150.08404325,0.00022237,2]
[327560624,1716231046712,-160.50893318,0.00022238,2]
[327560625,1716231046721,-202.159819,0.00022254,2]
[327560626,1716231046731,-344.70578906,0.00022361,2]
[327560627,1716231046741,-155.26226863,0.00022361,2]
[327560628,1716231046750,-1400.0,0.00022437,2]
[327560629,1716231046759,-150.0,0.000225,3]
[327560630,1716231046769,-892.23212663,0.00022502,2]
[327560631,1716231046779,-166.66666666,0.00022517,2]
[327560632,1716231046788,-153.87433227,0.00022535,2]
[327560633,1716231046798,-167.0,0.0002254,2]
[327560634,1716231046808,-344.70578906,0.00022652,2]
[327560635,1716231046817,-200.0,0.00022717,2]
[327560636,1716231046828,-500.0,0.00022717,2]
[327560637,1716231046837,-200.0,0.00022717,2]
[327560638,1716231046847,-167.90377051,0.00022726,2]
[327560639,1716231046857,-168.24161348,0.00022841,2]
[327560640,1716231046866,-153.87433227,0.00022887,2]
[327560641,1716231046875,-151.70197259,0.00022891,2]
[327560642,1716231046885,-166.66666667,0.00022916,2]
[327560643,1716231046894,-169.00998555,0.00022961,2]
[327560644,1716231046903,-155.0,0.00023,2]
[327560645,1716231046913,-5000.0,0.00023,2]
[327560646,1716231046923,-1800.0,0.00023,2]
[327560647,1716231046934,-1800.0,0.00023,2]
[327560648,1716231046944,-150.0,0.00023,3]
[327560649,1716231046955,-155.26226863,0.00023018,2]
[327560650,1716231046967,-153.87433227,0.00023025,2]
[327560651,1716231046976,-344.70578906,0.00023029,2]
[327560652,1716231046990,-150.0,0.00023109,2]
[327560653,1716231047000,-151.29039193,0.00023128,2]
[327560654,1716231047009,-151.70197259,0.00023179,2]
[327560655,1716231047019,-153.18821613,0.00023234,2]
[327560656,1716231047029,-167.0,0.00023238,2]
[327560657,1716231047038,-166.66666668,0.00023244,2]
[327560658,1716231047048,-2286.455585,0.000233,2]
[327560659,1716231047057,-151.70197259,0.00023305,2]
[327560660,1716231047069,-1500.0,0.00023309,2]
[327560661,1716231047080,-150.0,0.00023322,2]
[327560662,1716231047089,-3458.25184036,0.00023323,28]
[327560663,1716231047099,-155.16654335,0.00023369,2]
[327560664,1716231047109,-150.0,0.00023376,2]
[327560665,1716231047118,-159.58194571,0.0002338,2]
[327560666,1716231047128,-151.29039193,0.00023386,2]
[327560667,1716231047137,-158.84348737,0.000234,2]
[327560668,1716231047147,-150.0,0.00023412,2]
[327560669,1716231047156,-150.0,0.00023413,2]
[327560670,1716231047166,-344.70578906,0.00023433,2]
[327560671,1716231047176,-344.70578906,0.0002344,2]
[327560672,1716231047187,-1500.0,0.00023445,2]
[327560673,1716231047196,-153.18821613,0.00023476,2]
[327560674,1716231047206,-153.87433227,0.00023483,2]
[327560675,1716231047217,-1500.0,0.00023491,2]
[327560676,1716231047227,-1500.0,0.00023493,2]
[327560677,1716231047237,-150.0,0.000235,3]
[327560678,1716231047246,-153.18821613,0.00023529,2]
[327560679,1716231047256,-155.16654335,0.00023563,2]
[327560680,1716231047266,-892.23212663,0.00023567,2]
[327560681,1716231047276,-892.23212663,0.00023568,2]
[327560682,1716231047286,-344.70578906,0.00023587,2]
[327560683,1716231047296,-344.70578906,0.00023589,2]
[327560684,1716231047305,-166.66666668,0.00023591,2]
[327560685,1716231047315,-1500.0,0.00023592,2]
[327560686,1716231047326,-151.70197259,0.00023593,2]
[327560687,1716231047335,-344.70578906,0.00023595,2]
[327560688,1716231047345,-1500.0,0.00023605,2]
[327560689,1716231047535,-150.0,0.0002365,2]
[327560690,1716231047545,-153.18821613,0.00023665,2]
[327560691,1716231047556,-150.0,0.00023693,2]
[327560692,1716231047566,-150.0,0.000237,2]
[327560693,1716231047576,-150.0,0.00023702,2]
[327560694,1716231047585,-1500.0,0.00023713,2]
[327560695,1716231047594,-150.0,0.00023723,2]
[327560696,1716231047604,-150.0,0.00023733,2]
[327560697,1716231047615,-159.00349331,0.00023733,2]
[327560698,1716231047624,-669.75838449,0.00023743,2]
[327560699,1716231047634,-150.0,0.00023749,2]
[327560700,1716231047643,-150.0,0.00023757,2]
[327560701,1716231047653,-300.0,0.00023767,2]
[327560702,1716231047662,-150.0,0.0002378,2]
[327560703,1716231047672,-1500.0,0.00023783,2]
[327560704,1716231047681,-150.0,0.00023793,2]
[327560705,1716231047691,-150.0,0.00023797,2]
[327560706,1716231047700,-300.0,0.000238,2]
[327560707,1716231047709,-1500.0,0.000238,2]
[327560708,1716231047719,-159.00349331,0.00023805,2]
[327560709,1716231047728,-151.70197259,0.00023805,2]
[327560710,1716231047737,-150.0,0.00023806,2]
[327560711,1716231047746,-150.0,0.00023809,2]
[327560712,1716231047756,-1059.89330437,0.00023814,2]
[327560713,1716231047766,-1089.90929516,0.00023814,2]
[327560714,1716231047775,-1500.0,0.00023858,2]
[327560715,1716231047784,-150.0,0.00023868,2]
[327560716,1716231047794,-500.0,0.00023875,2]
[327560717,1716231047803,-500.0,0.00023875,2]
[327560718,1716231047813,-500.0,0.00023875,2]
[327560719,1716231047822,-500.0,0.00023875,2]
[327560720,1716231047832,-500.0,0.00023875,2]
[327560721,1716231047841,-500.0,0.00023875,2]
[327560722,1716231047851,-500.0,0.00023875,2]
[327560723,1716231047860,-500.0,0.00023875,2]
[327560724,1716231047869,-500.0,0.00023875,2]
[327560725,1716231047879,-500.0,0.00023875,2]
[327560726,1716231047888,-500.0,0.00023875,2]
[327560727,1716231047898,-500.0,0.00023875,2]
[327560728,1716231047907,-500.0,0.00023875,2]
[327560729,1716231047917,-500.0,0.00023875,2]
[327560730,1716231047926,-500.0,0.00023875,2]
[327560731,1716231047935,-500.0,0.00023875,2]
[327560732,1716231047945,-500.0,0.00023875,2]
[327560733,1716231047954,-500.0,0.00023875,2]
[327560734,1716231047964,-500.0,0.00023875,2]
[327560735,1716231047977,-500.0,0.00023875,2]
[327560736,1716231047987,-500.0,0.00023875,2]
[327560737,1716231047996,-500.0,0.00023875,2]
[327560738,1716231048006,-500.0,0.00023875,2]
[327560739,1716231048016,-500.0,0.00023875,2]
[327560740,1716231048026,-500.0,0.00023875,2]
[327560741,1716231048035,-500.0,0.00023875,2]
[327560742,1716231048047,-196.66,0.00023875,2]
[327560743,1716231048057,-150.0,0.00023896,2]
[327560744,1716231048067,-1000.0,0.000239,2]
[327560745,1716231048077,-10000.0,0.000239,2]
[327560746,1716231048086,-169.00998555,0.00023907,2]
[327560747,1716231048095,-150.0,0.0002391,2]
[327560748,1716231048105,-1500.0,0.00023916,2]
[327560749,1716231048115,-150.0,0.00023918,2]
[327560750,1716231048124,-344.70578906,0.00023919,2]
[327560751,1716231048133,-167.0,0.00023936,2]
[327560752,1716231048143,-150.0,0.00023939,2]
[327560753,1716231048152,-1500.0,0.00023947,2]
[327560754,1716231048160,-150.0,0.00023962,2]
[327560755,1716231048170,-300.0,0.00023962,2]